bitfinex/quotes_SOLUSD_20251120
["timestamp","ask_amount","ask_price","bid_price","bid_amount"]
[1763647434903,9.52341483,140.58,140.55,7.02120111]
[1763647435104,0.67,140.57,140.53,7.02120111]
[1763647435335,2.41,140.58,140.55,7.02120111]
[1763647435490,15.87465877,140.58,140.51,24.90919699]
[1763647435813,0.67,140.57,140.53,7.02120111]
[1763647436395,7.02120111,140.56,140.48,18.12096]
[1763647436582,7.02120111,140.56,140.51,7.02120111]
[1763647436886,7.11541198,140.54,140.48,7.78841272]
[1763647437219,8.76120111,140.53,140.46,7.11937238]
[1763647437384,1.74,140.53,140.5,7.02120111]
[1763647437782,1.74,140.53,140.47,0.67]
[1763647438000,1.74,140.53,140.49,7.02120111]
[1763647438201,9.43120111,140.53,140.46,24.91803392]
[1763647438422,9.43120111,140.53,140.48,7.02120111]
[1763647438712,0.67,140.52,140.48,7.02120111]
[1763647439011,7.11660519,140.52,140.46,0.67]
[1763647439219,1.74,140.53,140.46,0.67]
[1763647439406,1.74,140.53,140.5,7.02120111]
[1763647439608,0.67,140.57,140.51,7.02120111]
[1763647439807,8.76120111,140.56,140.52,7.02120111]
[1763647440003,8.76120111,140.56,140.49,0.67]
[1763647440204,7.02120111,140.54,140.47,18.79096]
[1763647440408,0.67,140.55,140.48,0.67]
[1763647440597,0.67,140.55,140.52,7.02120111]
[1763647440799,0.67,140.55,140.51,7.11683642]
[1763647441107,1.74,140.56,140.53,7.02120111]
[1763647441285,1.74,140.56,140.54,7.02120111]
[1763647441482,1.74,140.56,140.55,7.02120111]
[1763647441700,1.74,140.56,140.53,7.02120111]
[1763647441891,1.74,140.56,140.51,7.11683642]
[1763647442113,2.41,140.56,140.53,7.02120111]
[1763647442297,1.74,140.56,140.54,7.02120111]
[1763647442500,0.67,140.61,140.55,7.02120111]
[1763647442717,1.74,140.61,140.59,7.02120111]
[1763647442884,1.74,140.61,140.57,7.11361869]
[1763647443089,0.67,140.66,140.6,7.02120111]
[1763647443403,1.74,140.65,140.62,7.02120111]
[1763647443913,1.74,140.65,140.6,0.67]
[1763647443914,1.74,140.65,140.63,7.02120111]
[1763647444301,1.74,140.65,140.58,18.12096]
[1763647444302,1.74,140.67,140.58,18.12096]
[1763647444490,1.74,140.67,140.63,7.02120111]
[1763647444811,1.74,140.67,140.63,12.22874509]
[1763647444812,2.41,140.67,140.63,12.22874509]
[1763647445017,7.77934167,140.66,140.62,12.22874509]
[1763647445214,7.10934167,140.66,140.63,12.22874509]
[1763647445604,0.67,140.65,140.6,0.67]
[1763647445815,1.74,140.67,140.64,12.22874509]
[1763647446001,1.74,140.67,140.63,12.22874509]
[1763647446316,1.74,140.67,140.56,0.67]
[1763647446317,12.22874509,140.64,140.56,0.67]
[1763647446506,14.63874509,140.63,140.55,7.11490572]
[1763647446714,14.63874509,140.63,140.58,12.22874509]
[1763647446715,1.74,140.62,140.58,12.22874509]
[1763647446901,21.75046228,140.62,140.57,12.22874509]
[1763647447103,21.75046228,140.62,140.56,0.67]
[1763647447314,21.75046228,140.62,140.57,12.22874509]
[1763647447492,0.67,140.61,140.52,0.67]
[1763647447695,12.22874509,140.58,140.5,0.67]
[1763647447893,1.74,140.57,140.53,12.22874509]
[1763647448112,2.41,140.57,140.53,12.22874509]
[1763647448319,0.67,140.56,140.52,12.22874509]
[1763647448510,0.67,140.56,140.5,0.67]
[1763647448711,0.67,140.56,140.52,12.22874509]
[1763647448914,0.67,140.56,140.53,12.22874509]
[1763647449093,12.22874509,140.55,140.46,0.67]
[1763647449294,0.67,140.6,140.47,0.67]
[1763647449497,1.74,140.59,140.56,12.22874509]
[1763647450013,2.41,140.59,140.56,12.22874509]
[1763647450215,2.41,140.59,140.55,12.22874509]
[1763647450804,1.74,140.59,140.53,0.67]
[1763647451012,8.85301566,140.59,140.56,12.22874509]
[1763647451199,8.85301566,140.59,140.53,0.67]
[1763647451406,1.74,140.59,140.55,12.22874509]
[1763647451615,9.52291118,140.59,140.53,7.78591108]
[1763647451820,9.52291118,140.59,140.55,12.22874509]
[1763647452029,9.52291118,140.59,140.54,12.22874509]
[1763647452030,39.53385984,140.59,140.54,12.22874509]
[1763647452216,12.22874509,140.57,140.52,12.22874509]
[1763647452410,1.74,140.56,140.53,12.22874509]
[1763647452601,1.74,140.56,140.51,0.67]
[1763647452804,1.74,140.56,140.53,12.22874509]
[1763647453124,0.67,140.55,140.51,12.22874509]
[1763647454020,12.89874509,140.55,140.5,12.22874509]
[1763647454233,12.22874509,140.54,140.49,12.22874509]
[1763647454414,2.41,140.53,140.47,7.11895778]
[1763647454615,2.41,140.53,140.49,12.22874509]
[1763647454828,0.67,140.52,140.48,12.22874509]
[1763647455025,7.11693117,140.51,140.48,12.22874509]
[1763647455229,1.74,140.5,140.49,12.22874509]
[1763647455920,1.74,140.5,140.48,12.22874509]
[1763647456124,1.74,140.5,140.47,12.22874509]
[1763647457146,1.74,140.5,140.48,20.01701478]
[1763647457341,1.74,140.5,140.49,12.22874509]
[1763647457637,1.74,140.5,140.48,12.22874509]
[1763647458020,2.41,140.5,140.47,12.22874509]
[1763647458222,2.41,140.5,140.46,12.22874509]
[1763647458223,9.52755509,140.5,140.46,12.22874509]
[1763647458426,12.89874509,140.49,140.44,12.32874509]
[1763647459126,7.78802896,140.49,140.44,20.11904672]
[1763647459320,1.74,140.48,140.46,12.22874509]
[1763647459523,1.74,140.48,140.46,12.89874509]
[1763647459726,1.74,140.48,140.45,12.22874509]
[1763647460317,1.74,140.48,140.44,12.99874509]
[1763647460631,1.74,140.48,140.44,19.44917828]
[1763647460825,1.74,140.48,140.45,12.22874509]
[1763647461034,8.85848059,140.48,140.44,0.1]
[1763647461238,8.85848059,140.48,140.44,13.04874509]
[1763647461444,1.74,140.48,140.45,12.22874509]
[1763647461649,9.53873848,140.48,140.44,12.32874509]
[1763647462226,8.85873848,140.48,140.44,0.1]
[1763647462422,9.53873848,140.48,140.44,0.1]
[1763647462834,21.76748357,140.48,140.44,0.1]
[1763647463658,0.68,140.47,140.44,0.1]
[1763647463951,12.90874509,140.47,140.44,0.1]
[1763647464155,12.22874509,140.46,140.44,0.1]
[1763647464454,1.74,140.45,140.44,0.1]
[1763647464661,14.64874509,140.45,140.44,0.1]
[1763647465134,21.76871661,140.45,140.44,0.1]
[1763647465453,21.76871661,140.45,140.44,7.22035933]
[1763647465454,1.74,140.45,140.44,7.22035933]
[1763647465654,1.74,140.45,140.44,0.82]
[1763647465846,18.12096,140.5,140.44,20.16922358]
[1763647466050,1.74,140.49,140.45,12.22874509]
[1763647466255,1.74,140.49,140.44,0.82]
[1763647466429,12.90874509,140.48,140.44,0.1]
[1763647466635,0.68,140.48,140.44,7.22045385]
[1763647466835,1.74,140.47,140.44,0.1]
[1763647467161,19.3482097,140.46,140.44,0.1]
[1763647467346,20.0282097,140.46,140.44,0.1]
[1763647467550,12.22874509,140.45,140.44,0.1]
[1763647467870,10.46882769,140.5,140.44,0.1]
[1763647468044,13.96874509,140.49,140.44,7.94045641]
[1763647468247,12.22874509,140.48,140.44,0.1]
[1763647468553,0.68,140.48,140.44,0.1]
[1763647468730,12.90874509,140.48,140.44,0.1]
[1763647469255,19.34796373,140.47,140.44,0.1]
[1763647469461,1.74,140.46,140.44,0.1]
[1763647469767,2.46,140.46,140.44,0.1]
[1763647470260,2.46,140.46,140.35,1.74]
[1763647470261,18.12096,140.44,140.34,0.1]
[1763647470438,12.22874509,140.42,140.36,12.22874509]
[1763647470752,18.12096,140.45,140.4,12.22874509]
[1763647471053,1.74,140.43,140.37,18.81096]
[1763647471256,1.74,140.44,140.41,12.22874509]
[1763647471557,8.86056532,140.44,140.38,0.69]
[1763647471866,8.86056532,140.44,140.38,20.04212986]
[1763647472156,26.66176156,140.44,140.38,0.69]
[1763647472344,1.74,140.44,140.4,12.22874509]
[1763647472547,21.08924887,140.44,140.38,12.22874509]
[1763647472745,12.22874509,140.43,140.36,0.69]
[1763647473063,12.22874509,140.43,140.37,0.69]
[1763647473254,7.12250712,140.4,140.35,20.04360365]
[1763647473440,1.74,140.39,140.35,20.04360365]
[1763647473633,1.74,140.39,140.36,0.69]
[1763647474244,13.96874509,140.39,140.34,0.1]
[1763647474440,1.74,140.39,140.34,0.1]
[1763647474636,12.22874509,140.38,140.34,0.1]
[1763647475146,7.1245369,140.36,140.34,0.1]
[1763647475343,1.74,140.36,140.34,0.1]
[1763647475754,13.96874509,140.36,140.34,0.1]
[1763647476059,1.74,140.36,140.34,0.1]
[1763647476569,0.72,140.35,140.34,0.1]
[1763647476874,27.90978769,140.4,140.34,0.1]
[1763647477054,12.22874509,140.37,140.34,0.1]
[1763647477262,21.09337376,140.36,140.34,0.1]
[1763647477771,17.80870425,140.39,140.34,0.1]
[1763647477971,12.22874509,140.37,140.34,0.1]
[1763647478288,12.22874509,140.35,140.34,0.1]
[1763647478571,13.96874509,140.35,140.34,0.1]
[1763647478748,14.68874509,140.35,140.34,0.1]
[1763647479141,24.47757278,140.35,140.34,0.1]
[1763647479337,18.12096,140.31,140.24,0.69]
[1763647479566,19.35378962,140.35,140.28,12.22874509]
[1763647479868,12.22874509,140.33,140.27,12.22874509]
[1763647480169,2.46,140.34,140.26,0.69]
[1763647480337,12.94874509,140.33,140.25,18.12096]
[1763647480543,1.74,140.34,140.28,12.22874509]
[1763647480741,1.74,140.34,140.29,12.22874509]
[1763647480947,1.74,140.33,140.3,12.22874509]
[1763647481264,1.74,140.33,140.29,7.1280918]
[1763647481473,8.86615637,140.33,140.26,0.69]
[1763647481667,12.22874509,140.31,140.26,7.81960974]
[1763647481962,1.74,140.3,140.24,20.04937829]
[1763647482145,32.08970509,140.3,140.22,17.82899475]
[1763647482464,32.08970509,140.3,140.23,0.69]
[1763647482759,30.34970509,140.3,140.24,12.22874509]
[1763647482965,1.74,140.29,140.24,12.22874509]
[1763647483160,1.74,140.29,140.25,7.13012477]
[1763647483361,12.22874509,140.32,140.26,12.22874509]
[1763647483553,1.74,140.31,140.28,12.22874509]
[1763647483748,1.74,140.31,140.26,0.69]
[1763647483948,0.72,140.3,140.24,19.35934241]
[1763647484163,13.96874509,140.31,140.25,0.69]
[1763647484367,13.96874509,140.31,140.24,37.18592541]
[1763647484368,0.72,140.3,140.24,7.82059732]
[1763647484667,1.74,140.31,140.25,0.69]
[1763647484668,13.96874509,140.31,140.25,0.69]
[1763647484842,13.96874509,140.31,140.25,12.91874509]
[1763647485038,1.74,140.31,140.28,12.22874509]
[1763647485247,1.74,140.31,140.27,24.95187851]
[1763647485464,13.96874509,140.31,140.26,7.12916875]
[1763647485643,12.22874509,140.29,140.24,7.13028522]
[1763647485837,1.74,140.28,140.24,7.13028522]
[1763647486066,1.74,140.28,140.23,7.13103598]
[1763647486263,13.96874509,140.28,140.21,12.91874509]
[1763647486458,14.68874509,140.28,140.22,12.22874509]
[1763647486660,18.12096,140.25,140.2,1.93593088]
[1763647486967,12.22874509,140.27,140.21,0.69]
[1763647486968,1.74,140.26,140.21,0.69]
[1763647487164,1.74,140.26,140.22,12.22874509]
[1763647487368,0.72,140.26,140.22,7.13147222]
[1763647487567,18.12096,140.27,140.22,7.82147222]
[1763647487568,1.74,140.25,140.22,7.82147222]
[1763647487750,1.74,140.25,140.22,7.13147222]
[1763647488150,1.74,140.25,140.22,0.69]
[1763647488465,1.74,140.25,140.21,7.13184841]
[1763647488782,1.74,140.25,140.21,7.82184841]
[1763647488953,1.74,140.25,140.21,20.0505935]
[1763647489158,1.74,140.25,140.21,7.82184841]
[1763647489344,8.87039359,140.25,140.2,1.93593088]
[1763647489658,21.81913868,140.25,140.2,2.62593088]
[1763647489852,21.81913868,140.25,140.2,9.75852593]
[1763647490255,1.74,140.25,140.21,0.68]
[1763647490775,2.41,140.25,140.2,21.29727102]
[1763647490973,1.74,140.24,140.2,6.87552593]
[1763647491146,1.74,140.24,140.19,12.22874509]
[1763647491349,1.74,140.23,140.21,12.22874509]
[1763647491568,1.74,140.24,140.2,12.22874509]
[1763647491779,1.74,140.24,140.19,37.87483461]
[1763647491960,1.74,140.24,140.2,0.68]
[1763647492476,12.22874509,140.27,140.2,12.90874509]
[1763647492696,1.74,140.27,140.2,0.68]
[1763647492870,1.74,140.27,140.21,0.68]
[1763647493185,1.74,140.27,140.22,12.22874509]
[1763647493473,1.74,140.27,140.22,19.36039535]
[1763647493769,1.74,140.27,140.23,0.68]
[1763647493950,1.74,140.27,140.23,12.90874509]
[1763647494153,1.74,140.27,140.23,0.68]
[1763647494454,1.74,140.27,140.21,7.13195656]
[1763647494455,0.67,140.26,140.21,7.81195656]
[1763647494767,0.67,140.26,140.21,7.81206698]
[1763647494979,12.89874509,140.26,140.21,0.68]
[1763647495154,26.69198872,140.27,140.21,7.13214738]
[1763647495472,12.22874509,140.27,140.22,0.68]
[1763647495670,1.74,140.26,140.22,0.68]
[1763647496064,1.74,140.26,140.22,7.81163746]
[1763647496569,1.74,140.26,140.23,0.68]
[1763647496951,7.12882253,140.28,140.23,0.68]
[1763647497146,1.74,140.27,140.23,0.68]
[1763647497356,8.86952542,140.27,140.23,0.68]
[1763647497773,0.67,140.26,140.2,7.13266761]
[1763647497950,21.09786322,140.27,140.2,19.3614127]
[1763647498154,12.22874509,140.26,140.2,20.0414127]
[1763647498962,39.59063359,140.27,140.21,12.90874509]
[1763647499157,12.22874509,140.26,140.21,0.68]
[1763647499358,7.13012477,140.25,140.21,0.68]
[1763647499556,1.74,140.24,140.21,7.81213977]
[1763647500570,1.74,140.24,140.19,7.81283726]
[1763647500746,1.74,140.24,140.19,0.68]
[1763647500950,1.74,140.24,140.19,12.90874509]
[1763647501147,0.67,140.23,140.15,7.13521227]
[1763647501383,0.67,140.23,140.12,0.68]
[1763647501384,24.96077591,140.22,140.12,0.68]
[1763647501562,7.13165026,140.22,140.13,0.68]
[1763647501762,1.74,140.21,140.13,0.68]
[1763647502066,1.74,140.21,140.16,12.22874509]
[1763647502276,0.67,140.29,140.19,12.22874509]
[1763647502591,12.22874509,140.3,140.2,0.68]
[1763647502800,12.22874509,140.27,140.2,0.68]
[1763647502958,12.22874509,140.26,140.2,12.90874509]
[1763647503286,1.74,140.25,140.21,12.22874509]
[1763647503487,1.74,140.25,140.2,12.22874509]
[1763647503652,1.74,140.25,140.2,0.68]
[1763647503857,1.74,140.25,140.21,0.68]
[1763647504279,12.22874509,140.22,140.14,0.68]
[1763647504482,12.22874509,140.22,140.1,0.1]
[1763647504483,12.22874509,140.17,140.11,0.68]
[1763647504785,12.22874509,140.14,140.1,0.1]
[1763647504978,2.41,140.13,140.1,0.1]
[1763647505162,1.74,140.13,140.1,0.1]
[1763647505359,1.74,140.13,140.01,1.74]
[1763647505360,1.74,140.13,140.09,12.22874509]
[1763647505579,1.76,140.15,140.1,12.90874509]
[1763647505891,1.76,140.15,140.12,12.22874509]
[1763647506202,0.67,140.14,140.09,9.78882769]
[1763647506501,0.67,140.14,140.06,10.46882769]
[1763647506502,18.12096,140.23,140.06,0.68]
[1763647506708,18.12096,140.23,140.01,42.85408184]
[1763647506709,18.12096,140.17,140.07,0.68]
[1763647507005,1.76,140.16,140.08,7.07938421]
[1763647507167,0.67,140.19,140.07,0.68]
[1763647507363,7.07938421,140.16,140.11,7.1372493]
[1763647507581,7.07938421,140.16,140.1,7.07938421]
[1763647507582,7.07938421,140.13,140.07,0.68]
[1763647507903,8.83938421,140.12,140.05,7.75938421]
[1763647508091,8.83938421,140.12,140.05,0.68]
[1763647508281,1.76,140.12,140.06,7.75938421]
[1763647508487,1.76,140.12,140.09,7.07938421]
[1763647508681,8.83938421,140.12,140.07,7.75938421]
[1763647508998,7.74938421,140.11,140.05,7.07938421]
[1763647509594,14.21663563,140.11,140.05,7.75938421]
[1763647509980,2.43,140.12,140.07,7.07938421]
[1763647510180,2.43,140.12,140.05,7.1402928]
[1763647510181,1.76,140.11,140.05,7.8202928]
[1763647510417,9.50938421,140.11,140.05,14.89968746]
[1763647510576,9.50938421,140.11,140.05,7.82030325]
[1763647510766,1.76,140.11,140.07,7.07938421]
[1763647511093,7.07938421,140.09,140.04,14.22000323]
[1763647511305,7.07938421,140.1,140.05,7.07938421]
[1763647511461,18.12096,140.15,140.06,7.81979722]
[1763647511462,1.76,140.09,140.06,7.81979722]
[1763647511662,7.07938421,140.12,140.07,7.07938421]
[1763647511865,1.76,140.13,140.08,7.07938421]
[1763647512083,7.07938421,140.12,140.06,7.07938421]
[1763647512286,0.67,140.12,140.03,0.68]
[1763647512472,0.67,140.11,140.0,1.442885]
[1763647512677,7.07938421,140.05,140.0,8.52226921]
[1763647512879,1.76,140.04,140.0,9.20226921]
[1763647513099,1.76,140.04,140.0,2.122885]
[1763647513266,1.76,140.04,140.0,9.20226921]
[1763647513469,1.76,140.04,140.02,7.07938421]
[1763647513677,0.67,140.09,140.01,0.68]
[1763647513971,1.76,140.08,140.03,7.07938421]
[1763647514189,35.6786071,140.14,140.05,7.07938421]
[1763647514190,7.1368439,140.12,140.05,7.07938421]
[1763647514390,7.80637341,140.13,140.06,7.75938421]
[1763647514600,7.07938421,140.11,140.06,0.68]
[1763647514807,7.07938421,140.07,140.0,8.58561436]
[1763647515098,1.76,140.07,140.03,7.07938421]
[1763647515280,8.83938421,140.07,140.01,0.68]
[1763647515474,14.21918143,140.06,140.01,7.75938421]
[1763647515677,7.07938421,140.05,140.0,1.442885]
[1763647515875,24.98929029,140.06,140.0,8.52226921]
[1763647516076,0.67,140.04,140.0,1.442885]
[1763647516300,7.07938421,140.02,140.0,1.442885]
[1763647516489,18.12096,140.05,140.0,1.442885]
[1763647516685,1.76,140.02,140.0,1.442885]
[1763647518184,1.76,140.02,140.0,9.26560587]
[1763647518477,1.76,140.02,140.0,16.34499008]
[1763647518681,14.21981106,140.05,140.0,8.58560587]
[1763647518682,7.14087397,140.04,140.0,8.58560587]
[1763647518883,1.76,140.03,140.0,9.26560587]
[1763647519187,1.76,140.03,140.0,1.442885]
[1763647519388,8.83938421,140.03,140.0,1.442885]
[1763647519687,14.221156,140.03,140.0,1.442885]
[1763647519886,1.76,140.02,140.0,1.442885]
[1763647520886,27.90978769,140.08,140.0,1.442885]
[1763647520887,0.72,140.07,140.01,0.69]
[1763647521088,9.78882769,140.12,140.01,0.69]
[1763647521289,17.8405766,140.13,140.01,0.69]
[1763647521290,1.76,140.11,140.04,7.07938421]
[1763647521495,7.85639598,140.13,140.07,14.2186717]
[1763647521695,7.07938421,140.09,140.01,0.69]
[1763647522013,7.85639598,140.13,140.0,8.52226921]
[1763647522014,2.48,140.08,140.0,1.442885]
[1763647522609,0.72,140.07,140.0,1.442885]
[1763647522796,1.76,140.06,140.0,1.442885]
[1763647523107,18.12096,140.02,140.0,1.162885]
[1763647523320,8.83938421,140.01,140.0,1.162885]
[1763647523617,16.60173118,140.01,140.0,1.162885]
[1763647523803,8.83938421,140.01,140.0,1.162885]
[1763647524113,1.99999999,140.07,140.0,1.162885]
[1763647524114,1.76,140.04,140.0,1.162885]
[1763647524622,7.07938421,140.16,140.0,1.162885]
[1763647524623,1.76,140.05,140.02,7.07938421]
[1763647524819,8.83938421,140.07,140.01,0.69]
[1763647524982,8.83938421,140.07,140.0,8.30568294]
[1763647524983,1.76,140.07,140.0,1.162885]
[1763647525181,7.07938421,140.06,140.0,1.162885]
[1763647525386,7.07938421,140.05,140.0,8.93226921]
[1763647525588,14.21993809,140.05,140.0,8.93226921]
[1763647525895,7.07938421,140.06,140.01,0.69]
[1763647526100,0.62,140.08,140.01,0.69]
[1763647526101,1.76,140.04,140.02,7.07938421]
[1763647526294,1.76,140.04,140.02,7.76938421]
[1763647526495,1.76,140.04,140.03,7.76938421]
[1763647526802,1.76,140.04,140.02,7.07938421]
[1763647526987,0.62,140.13,140.03,7.07938421]
[1763647527186,1.76,140.12,140.01,0.69]
[1763647527427,1.76,140.12,140.08,7.07938421]
[1763647527630,1.76,140.12,140.02,9.78882769]
[1763647527631,7.07938421,140.15,140.1,7.07938421]
[1763647527789,17.16,140.21,140.09,0.69]
[1763647527790,17.78,140.21,140.09,0.69]
[1763647528127,17.78,140.21,140.1,7.07938421]
[1763647528128,7.07938421,140.15,140.1,7.07938421]
[1763647528299,18.12096,140.18,140.09,0.69]
[1763647528300,8.83938421,140.14,140.09,0.69]
[1763647528709,7.07938421,140.12,140.06,0.69]
[1763647528916,7.07938421,140.08,140.03,0.69]
[1763647529225,1.76,140.07,140.03,0.69]
[1763647529438,1.76,140.09,140.06,7.07938421]
[1763647529614,1.76,140.09,140.07,7.07938421]
[1763647530021,1.76,140.09,140.07,7.77938421]
[1763647530209,1.76,140.09,140.01,7.14234697]
[1763647530409,1.76,140.09,140.05,0.7]
[1763647530634,8.89831102,140.09,140.05,0.7]
[1763647530939,1.76,140.09,140.07,7.07938421]
[1763647531312,7.07938421,140.12,140.08,7.77938421]
[1763647531535,1.76,140.11,140.08,7.77938421]
[1763647532128,1.76,140.11,140.04,17.85134425]
[1763647532129,8.89733691,140.11,140.04,17.85134425]
[1763647532330,8.89733691,140.11,140.07,7.07938421]
[1763647532705,8.89733691,140.11,140.03,18.12096]
[1763647533039,0.62,140.1,140.01,25.96330697]
[1763647533334,7.07938421,140.09,140.05,7.07938421]
[1763647533938,7.07938421,140.09,140.05,0.7]
[1763647534107,17.84439685,140.1,140.04,7.07938421]
[1763647534108,7.07938421,140.08,140.04,7.07938421]
[1763647534312,8.83938421,140.07,140.03,7.77938421]
[1763647534538,7.07938421,140.05,140.0,8.24226921]
[1763647534908,2.38,140.07,140.0,8.94226921]
[1763647535103,7.07938421,140.05,140.01,7.07938421]
[1763647535630,7.07938421,140.05,140.01,7.77938421]
[1763647536011,14.22015168,140.05,140.01,0.7]
[1763647536225,14.22015168,140.05,140.01,7.77938421]
[1763647536834,14.22015168,140.05,140.01,0.7]
[1763647537030,7.14076747,140.05,140.0,8.24226921]
[1763647537224,14.22015168,140.05,140.0,9.00573992]
[1763647537419,7.07938421,140.05,140.01,7.77938421]
[1763647537620,7.07938421,140.05,140.01,0.7]
[1763647537816,7.14031798,140.05,140.01,7.77938421]
[1763647538136,7.69938421,140.05,140.0,1.162885]
[1763647538338,7.07938421,140.03,140.0,1.162885]
[1763647538517,0.62,140.04,140.0,1.162885]
[1763647538518,7.07938421,140.02,140.0,1.162885]
[1763647538717,1.76,140.01,140.0,1.162885]
[1763647539039,7.07938421,140.03,140.0,1.162885]
[1763647539336,1.76,140.02,140.0,1.162885]
[1763647539505,1.76,140.01,140.0,1.162885]
[1763647539709,8.83938421,140.01,140.0,1.162885]
[1763647539909,15.98173118,140.01,140.0,1.162885]
[1763647540104,8.83938421,140.01,140.0,1.162885]
[1763647540330,7.07938421,140.01,140.0,1.162885]
[1763647540534,15.98173118,140.01,140.0,1.162885]
[1763647541136,1.76,140.01,140.0,1.162885]
[1763647541643,1.76,140.01,140.0,1.862885]
[1763647542009,1.76,140.01,140.0,1.162885]
[1763647542232,1.76,140.02,140.0,1.162885]
[1763647542443,7.07938421,140.01,140.0,1.162885]
[1763647542615,7.14137942,140.03,140.0,1.162885]
[1763647542813,7.14137942,140.03,140.0,8.94226921]
[1763647542814,1.76,140.03,140.0,8.94226921]
[1763647543123,1.76,140.03,140.0,1.162885]
[1763647543319,1.76,140.03,140.0,1.862885]
[1763647543631,1.76,140.03,140.01,7.77938421]
[1763647544107,1.76,140.03,140.02,0.7]
[1763647544712,1.76,140.03,140.0,9.00567319]
[1763647544911,1.76,140.03,140.01,7.77938421]
[1763647545114,1.76,140.03,140.01,0.7]
[1763647545330,8.90135919,140.03,140.01,0.7]
[1763647545537,8.90135919,140.03,140.0,1.162885]
[1763647545746,0.62,140.02,140.0,1.162885]
[1763647545928,1.76,140.01,140.0,1.162885]
[1763647546115,8.83938421,140.01,140.0,1.162885]
[1763647546314,26.39055887,140.01,140.0,1.162885]
[1763647546638,8.90234697,140.01,140.0,1.162885]
[1763647546938,7.07938421,140.03,140.0,1.162885]
[1763647547117,1.76,140.01,140.0,1.162885]
[1763647547319,8.83938421,140.01,140.0,1.162885]
[1763647547539,9.45938421,140.01,140.0,1.162885]
[1763647547915,19.2482119,140.01,140.0,1.162885]
[1763647548115,26.39055887,140.01,140.0,1.162885]
[1763647548421,18.12096,139.97,139.92,0.1]
[1763647548624,7.07938421,139.94,139.92,0.1]
[1763647548938,1.76,139.93,139.92,0.1]
[1763647549817,19.2482119,139.93,139.92,0.1]
[1763647550139,19.2482119,139.93,139.91,1.93593088]
[1763647550140,16.93576879,139.92,139.91,1.93593088]
[1763647550332,16.93576879,139.92,139.91,1e-08]
[1763647550333,14.84632531,139.92,139.91,1e-08]
[1763647550522,24.635153,139.92,139.91,1e-08]
[1763647551529,7.07938421,139.92,139.91,1e-08]
[1763647551842,8.83938421,139.92,139.91,1e-08]
[1763647552015,33.47453721,139.92,139.91,1e-08]
[1763647552217,51.59549721,139.92,139.91,1e-08]
[1763647552522,42.756113,139.92,139.91,1e-08]
[1763647552725,30.28978769,139.92,139.91,1e-08]
[1763647553043,44.516113,139.92,139.91,1e-08]
[1763647553228,37.43672879,139.92,139.91,1e-08]
[1763647553536,8.9069411,139.92,139.91,1e-08]
[1763647553739,18.69576879,139.92,139.91,1e-08]
[1763647553930,25.775153,139.92,139.91,1e-08]
[1763647554136,15.98632531,139.92,139.91,1e-08]
[1763647554330,16.60632531,139.92,139.91,1e-08]
[1763647554531,15.98632531,139.92,139.91,1e-08]
[1763647554926,25.775153,139.92,139.91,1e-08]
[1763647555138,33.47453721,139.92,139.91,1e-08]
[1763647555739,25.88718305,139.94,139.91,1e-08]
[1763647556043,14.22632531,139.92,139.91,1e-08]
[1763647556342,21.30570952,139.92,139.91,1e-08]
[1763647556543,21.92570952,139.92,139.91,1e-08]
[1763647556735,14.22632531,139.92,139.91,1e-08]
[1763647556936,24.635153,139.92,139.91,1e-08]
[1763647557139,31.71453721,139.92,139.91,1e-08]
[1763647557445,24.635153,139.92,139.91,1e-08]
[1763647557633,31.71453721,139.92,139.91,1e-08]
[1763647558040,24.015153,139.92,139.91,1e-08]
[1763647558246,31.71453721,139.92,139.91,1e-08]